[Event "16th EWICC 2015"]
[Site "Kutaisi"]
[Date "2015.06.02"]
[Round "6"]
[White "Choladze, Tea"]
[Black "Tedoshvili, Ana"]
[Result "0-1"]
[ECO "C41"]
[WhiteElo "1755"]
[BlackElo "1805"]
[Annotator "Robot 11"]
[PlyCount "68"]
[EventDate "2015.??.??"]
[EventCountry "GEO"]
[TimeControl "900+10"]

1. e4 {[%emt 0:00:02]} e5 {[%emt 0:00:08]} 2. Nf3 {[%emt 0:00:01]} d6 {[%emt 0:
00:00]} 3. h3 {[%emt 0:00:07]} Nf6 {[%emt 0:00:02]} 4. d3 {[%emt 0:00:04]} g6 {
[%emt 0:00:01]} 5. Be2 {[%emt 0:00:05]} Bg7 {[%emt 0:00:01]} 6. O-O {[%emt 0:
00:02]} O-O {[%emt 0:00:01]} 7. c3 {[%emt 0:00:00]} Be6 {[%emt 0:00:03]} 8. Re1
{[%emt 0:00:08]} Nc6 {[%emt 0:00:08]} 9. Nbd2 {[%emt 0:00:04]} d5 {[%emt 0:00:
10]} 10. exd5 {[%emt 0:00:14]} Nxd5 {[%emt 0:00:03]} 11. Bf1 {[%emt 0:00:08]}
Nf4 {[%emt 0:00:10]} 12. Ne4 {[%emt 0:00:16]} Bd5 {[%emt 0:00:31]} 13. d4 {
[%emt 0:00:29]} Ne6 {[%emt 0:00:31]} 14. dxe5 {[%emt 0:00:24]} Nxe5 {[%emt 0:
00:04]} 15. Nxe5 {[%emt 0:00:17]} Bxe5 {[%emt 0:00:19]} 16. Nd2 {[%emt 0:00:31]
} Bg7 {[%emt 0:00:02]} 17. Nf3 {[%emt 0:00:09]} Bc6 {[%emt 0:00:08]} 18. Qe2 {
[%emt 0:00:18]} Qf6 {[%emt 0:00:35]} 19. Nh2 {[%emt 0:00:22]} Nf4 {[%emt 0:00:
36]} 20. Qc4 {[%emt 0:00:16]} Nd5 {[%emt 0:00:37]} 21. Ng4 {[%emt 0:00:06]} Qd6
{[%emt 0:00:03]} 22. Bg5 {[%emt 0:00:57]} h5 {[%emt 0:00:37]} 23. Ne3 {[%emt 0:
00:19]} Nxe3 {[%emt 0:00:27]} 24. Rxe3 {[%emt 0:00:08]} Rae8 {[%emt 0:00:31]}
25. Bf4 {[%emt 0:00:18]} Qd7 {[%emt 0:00:26]} 26. Rd3 {[%emt 0:00:03]} Qf5 {
[%emt 0:00:28]} 27. Bxc7 {[%emt 0:01:23]} Bb5 {[%emt 0:00:33]} 28. g4 {[%emt 0:
02:39]} hxg4 {[%emt 0:01:16]} 29. hxg4 {[%emt 0:00:54]} Bxc4 {[%emt 0:00:25]}
30. gxf5 {[%emt 0:00:01]} Bxd3 {[%emt 0:00:02]} 31. Bxd3 {[%emt 0:00:04]} Rc8 {
[%emt 0:00:05]} 32. Bf4 {[%emt 0:00:15]} Rfd8 {[%emt 0:00:38]} 33. Bc2 {[%emt
0:00:51]} Rc4 {[%emt 0:01:01]} 34. Bg5 {[%emt 0:00:18]} Rf4 0-1

[Event "16th EWICC 2015"]
[Site "Kutaisi"]
[Date "2015.06.02"]
[Round "6"]
[White "Daulyte, Deimante"]
[Black "Gaponenko, Inna"]
[Result "0-1"]
[ECO "B24"]
[WhiteElo "2402"]
[BlackElo "2391"]
[Annotator "Robot 11"]
[PlyCount "66"]
[EventDate "2015.??.??"]
[EventCountry "GEO"]
[TimeControl "900+10"]

1. e4 {[%emt 0:00:03]} c5 {[%emt 0:00:01]} 2. Nc3 {[%emt 0:00:02]} Nc6 {[%emt
0:00:01]} 3. Bb5 {[%emt 0:00:02]} Nd4 {[%emt 0:00:04]} 4. Nf3 {[%emt 0:00:02]}
g6 {[%emt 0:00:11]} 5. Bc4 {[%emt 0:00:20]} Bg7 {[%emt 0:00:02]} 6. Nxd4 {
[%emt 0:00:03]} cxd4 {[%emt 0:00:02]} 7. Qf3 {[%emt 0:00:04]} Nh6 {[%emt 0:06:
06]} 8. Ne2 {[%emt 0:00:06]} e6 {[%emt 0:00:01]} 9. d3 {[%emt 0:00:18]} f5 {
[%emt 0:00:16]} 10. Bxh6 {[%emt 0:03:54]} Bxh6 {[%emt 0:00:01]} 11. exf5 {
[%emt 0:00:40]} Qa5+ {[%emt 0:00:21]} 12. Kf1 {[%emt 0:01:21]} O-O {[%emt 0:00:
19]} 13. Nxd4 {[%emt 0:02:36]} d5 {[%emt 0:02:37]} 14. Bb3 {[%emt 0:00:14]} Bg7
{[%emt 0:00:05]} 15. Ne2 {[%emt 0:02:27]} Rxf5 {[%emt 0:02:28]} 16. Qe3 {[%emt
0:00:06]} Re5 {[%emt 0:00:27]} 17. Qc1 {[%emt 0:00:37]} Bd7 {[%emt 0:00:17]}
18. Qe1 {[%emt 0:00:45]} Qb6 {[%emt 0:00:01]} 19. a4 {[%emt 0:01:35]} a5 {
[%emt 0:00:08]} 20. d4 {[%emt 0:00:58]} Rf5 {[%emt 0:00:09]} 21. Rd1 {[%emt 0:
00:30]} Raf8 {[%emt 0:00:18]} 22. g3 {[%emt 0:00:25]} Rxf2+ {[%emt 0:00:46]}
23. Qxf2 {[%emt 0:00:02]} Rxf2+ {[%emt 0:00:02]} 24. Kxf2 {[%emt 0:00:01]} Qb4
{[%emt 0:00:01]} 25. Rd3 {[%emt 0:00:50]} b5 {[%emt 0:00:04]} 26. axb5 {[%emt
0:01:03]} Bxb5 {[%emt 0:02:21]} 27. Rdd1 {[%emt 0:00:01]} a4 {[%emt 0:00:07]}
28. Ba2 {[%emt 0:00:01]} Bxe2 {[%emt 0:00:44]} 29. Kxe2 {[%emt 0:00:01]} Qxb2 {
[%emt 0:00:01]} 30. Rb1 {[%emt 0:00:17]} Qxc2+ {[%emt 0:00:06]} 31. Ke1 {[%emt
0:00:23]} Bxd4 {[%emt 0:00:17]} 32. Rb8+ {[%emt 0:00:15]} Kg7 {[%emt 0:00:01]}
33. Rf1 {[%emt 0:00:02]} Bc3# {[%emt 0:00:06]} 0-1

[Event "16th EWICC 2015"]
[Site "Kutaisi"]
[Date "2015.06.02"]
[Round "6"]
[White "Donghvani, Nia"]
[Black "Kostava, Elene"]
[Result "0-1"]
[ECO "B12"]
[WhiteElo "1444"]
[BlackElo "1691"]
[Annotator "Robot 11"]
[PlyCount "90"]
[EventDate "2015.??.??"]
[EventCountry "GEO"]
[TimeControl "900+10"]

1. e4 c6 2. d4 d5 3. f3 Qb6 4. Nc3 e5 {[%emt 0:00:34]} 5. exd5 {[%emt 0:06:13]}
exd4 {[%emt 0:00:36]} 6. Nce2 {[%emt 0:01:36]} Bc5 {[%emt 0:00:52]} 7. Qd3 {
[%emt 0:01:08]} Ne7 {[%emt 0:01:33]} 8. Ng3 {[%emt 0:01:07]} O-O {[%emt 0:01:
37]} 9. N1e2 {[%emt 0:01:46]} Nxd5 {[%emt 0:00:43]} 10. a3 {[%emt 0:00:19]} a5
{[%emt 0:00:55]} 11. Nf4 {[%emt 0:00:55]} Nxf4 {[%emt 0:00:29]} 12. Bxf4 {
[%emt 0:00:02]} Qxb2 {[%emt 0:00:12]} 13. Rd1 {[%emt 0:00:04]} Bxa3 {[%emt 0:
00:16]} 14. Be2 {[%emt 0:00:06]} Bb4+ {[%emt 0:00:52]} 15. Bd2 {[%emt 0:00:13]}
Bxd2+ {[%emt 0:00:02]} 16. Qxd2 {[%emt 0:00:02]} Qc3 {[%emt 0:01:43]} 17. O-O {
[%emt 0:00:27]} Qxd2 {[%emt 0:00:12]} 18. Rxd2 {[%emt 0:00:01]} c5 {[%emt 0:00:
16]} 19. Ne4 {[%emt 0:00:04]} b6 {[%emt 0:00:15]} 20. Rb1 {[%emt 0:00:08]} Nd7
{[%emt 0:00:32]} 21. Bb5 {[%emt 0:00:23]} Ne5 {[%emt 0:01:03]} 22. Be2 {[%emt
0:00:32]} Rb8 {[%emt 0:00:26]} 23. Nxc5 {[%emt 0:00:39]} Bf5 {[%emt 0:00:29]}
24. Nb3 {[%emt 0:00:41]} d3 {[%emt 0:01:28]} 25. Bxd3 {[%emt 0:00:27]} Nxd3 {
[%emt 0:00:09]} 26. cxd3 {[%emt 0:00:04]} Rfd8 {[%emt 0:00:02]} 27. Nc1 {[%emt
0:00:39]} b5 {[%emt 0:00:35]} 28. Rdb2 {[%emt 0:00:28]} b4 {[%emt 0:00:02]} 29.
Ra1 {[%emt 0:00:11]} Rd5 {[%emt 0:00:06]} 30. Kf2 {[%emt 0:00:30]} Rc8 {[%emt
0:00:47]} 31. g4 {[%emt 0:00:24]} Be6 {[%emt 0:00:43]} 32. Nb3 {[%emt 0:00:21]}
Rxd3 {[%emt 0:00:33]} 33. Nxa5 {[%emt 0:00:30]} b3 {[%emt 0:00:22]} 34. Ke2 {
[%emt 0:00:20]} Rdc3 {[%emt 0:01:01]} 35. Ke1 {[%emt 0:00:12]} Rxf3 {[%emt 0:
00:09]} 36. Nb7 {[%emt 0:00:05]} g6 {[%emt 0:00:09]} 37. Nd6 {[%emt 0:00:08]}
Rd8 {[%emt 0:00:09]} 38. Nb5 {[%emt 0:00:20]} Bc4 {[%emt 0:00:08]} 39. Na7 {
[%emt 0:00:11]} Kg7 {[%emt 0:00:07]} 40. Rab1 {[%emt 0:00:05]} Re3+ {[%emt 0:
00:09]} 41. Kf2 {[%emt 0:00:03]} Re6 {[%emt 0:00:07]} 42. h3 {[%emt 0:00:03]}
Ra8 {[%emt 0:00:02]} 43. Ra1 {[%emt 0:00:04]} Rb6 {[%emt 0:00:11]} 44. h4 {
[%emt 0:00:12]} Rb7 {[%emt 0:00:00]} 45. Ra4 {[%emt 0:00:15]} Be6 {[%emt 0:00:
08]} 0-1

[Event "16th EWICC 2015"]
[Site "Kutaisi"]
[Date "2015.06.02"]
[Round "6"]
[White "Dordzhieva, Dinara"]
[Black "Choladze, Mariam"]
[Result "1-0"]
[ECO "A05"]
[WhiteElo "2242"]
[BlackElo "1989"]
[Annotator "Robot 11"]
[PlyCount "135"]
[EventDate "2015.??.??"]
[EventCountry "GEO"]
[TimeControl "900+10"]

1. Nf3 {[%emt 0:00:01]} Nf6 {[%emt 0:00:01]} 2. c4 {[%emt 0:00:02]} b6 {[%emt
0:00:01]} 3. g3 {[%emt 0:00:07]} c5 {[%emt 0:00:02]} 4. Bg2 {[%emt 0:00:05]}
Bb7 {[%emt 0:00:01]} 5. b3 {[%emt 0:00:06]} g6 {[%emt 0:00:05]} 6. Bb2 {[%emt
0:00:16]} Bg7 {[%emt 0:00:01]} 7. d3 {[%emt 0:00:36]} O-O {[%emt 0:00:03]} 8.
O-O {[%emt 0:00:05]} d6 {[%emt 0:00:18]} 9. e4 {[%emt 0:00:40]} Nbd7 {[%emt 0:
00:05]} 10. Nc3 {[%emt 0:00:07]} Rc8 {[%emt 0:01:02]} 11. Re1 {[%emt 0:00:09]}
a6 {[%emt 0:00:49]} 12. d4 {[%emt 0:00:01]} cxd4 {[%emt 0:00:07]} 13. Nxd4 {
[%emt 0:00:01]} Nc5 {[%emt 0:00:58]} 14. Qd2 {[%emt 0:00:26]} Nfd7 {[%emt 0:00:
58]} 15. Rad1 {[%emt 0:00:12]} Ne6 {[%emt 0:00:10]} 16. Nxe6 {[%emt 0:00:49]}
fxe6 {[%emt 0:00:02]} 17. Bh3 {[%emt 0:00:01]} Rf6 {[%emt 0:01:06]} 18. Na4 {
[%emt 0:01:13]} b5 {[%emt 0:01:19]} 19. Bxf6 {[%emt 0:00:05]} Bxf6 {[%emt 0:00:
13]} 20. Bxe6+ {[%emt 0:00:01]} Kg7 {[%emt 0:00:03]} 21. Bxd7 {[%emt 0:00:29]}
Rb8 {[%emt 0:01:23]} 22. cxb5 {[%emt 0:00:45]} Qxd7 {[%emt 0:00:11]} 23. Nc5 {
[%emt 0:01:37]} Qxb5 {[%emt 0:00:14]} 24. Nxb7 {[%emt 0:00:02]} Rxb7 {[%emt 0:
00:14]} 25. Qd5 {[%emt 0:00:01]} Qb6 {[%emt 0:01:28]} 26. Kg2 {[%emt 0:01:00]}
Qb4 {[%emt 0:01:44]} 27. Rc1 {[%emt 0:01:02]} Rb5 {[%emt 0:00:32]} 28. Qc4 {
[%emt 0:00:25]} Qa5 {[%emt 0:00:22]} 29. a4 {[%emt 0:01:13]} Rh5 {[%emt 0:00:
44]} 30. Red1 {[%emt 0:00:41]} Qg5 {[%emt 0:00:34]} 31. Qe6 {[%emt 0:00:08]}
Qh6 {[%emt 0:01:14]} 32. h3 {[%emt 0:00:43]} Re5 {[%emt 0:00:18]} 33. Qg4 {
[%emt 0:00:47]} Rg5 {[%emt 0:00:55]} 34. Qf4 {[%emt 0:00:11]} Be5 {[%emt 0:00:
42]} 35. Qf3 {[%emt 0:00:00]} Rh5 {[%emt 0:00:53]} 36. Rc8 {[%emt 0:00:02]} Bf6
{[%emt 0:00:05]} 37. Qg4 {[%emt 0:00:55]} Re5 {[%emt 0:00:13]} 38. b4 {[%emt 0:
00:37]} g5 {[%emt 0:01:01]} 39. Rd5 {[%emt 0:01:21]} Rxd5 {[%emt 0:00:50]} 40.
exd5 {[%emt 0:00:01]} Qg6 {[%emt 0:00:07]} 41. b5 {[%emt 0:00:46]} axb5 {[%emt
0:00:06]} 42. axb5 Qd3 {[%emt 0:00:12]} 43. Qc4 {[%emt 0:00:05]} Qd2 {[%emt 0:
00:03]} 44. Qe4 {[%emt 0:00:21]} Qb2 {[%emt 0:00:11]} 45. Qd3 {[%emt 0:00:33]}
Bd4 {[%emt 0:00:13]} 46. Rc2 {[%emt 0:00:01]} Qa1 {[%emt 0:00:05]} 47. Re2 {
[%emt 0:00:14]} Be5 {[%emt 0:00:12]} 48. b6 {[%emt 0:00:38]} Qa5 {[%emt 0:00:
07]} 49. b7 {[%emt 0:00:35]} Qb6 {[%emt 0:00:01]} 50. Qf5 {[%emt 0:00:04]} Qxb7
{[%emt 0:00:07]} 51. Qxg5+ {[%emt 0:00:05]} Kh8 {[%emt 0:00:16]} 52. Rd2 {
[%emt 0:00:26]} Bf6 {[%emt 0:00:10]} 53. Qf5 {[%emt 0:00:05]} Qb4 {[%emt 0:00:
13]} 54. Rc2 {[%emt 0:00:04]} Qd4 {[%emt 0:00:38]} 55. Rc8+ {[%emt 0:00:08]}
Kg7 {[%emt 0:00:01]} 56. Qg4+ {[%emt 0:00:01]} Qxg4 {[%emt 0:00:25]} 57. hxg4 {
[%emt 0:00:01]} Bd4 {[%emt 0:00:07]} 58. Kf3 {[%emt 0:00:03]} Kg6 {[%emt 0:00:
07]} 59. Rc4 {[%emt 0:00:11]} Be5 {[%emt 0:00:07]} 60. Ke4 {[%emt 0:00:04]} h6
{[%emt 0:00:07]} 61. Rc8 {[%emt 0:00:08]} Bf6 {[%emt 0:00:09]} 62. Rc7 {[%emt
0:00:33]} Bg5 {[%emt 0:00:13]} 63. Rd7 {[%emt 0:00:08]} Bf6 {[%emt 0:00:06]}
64. f4 {[%emt 0:00:05]} Kf7 {[%emt 0:00:29]} 65. Kf5 {[%emt 0:00:01]} Ke8 {
[%emt 0:00:06]} 66. Ke6 {[%emt 0:00:04]} Kf8 {[%emt 0:00:05]} 67. Rd8+ {[%emt
0:00:03]} Kg7 {[%emt 0:00:02]} 68. Re8 {[%emt 0:00:01]} 1-0

[Event "16th EWICC 2015"]
[Site "Kutaisi"]
[Date "2015.06.02"]
[Round "6"]
[White "Esadze, Tamar"]
[Black "Gognadze, Tsira"]
[Result "1-0"]
[ECO "C10"]
[WhiteElo "1697"]
[BlackElo "1144"]
[Annotator "Robot 11"]
[PlyCount "61"]
[EventDate "2015.??.??"]
[EventCountry "GEO"]
[TimeControl "900+10"]

1. e4 {[%emt 0:00:01]} e6 {[%emt 0:00:00]} 2. d4 {[%emt 0:00:03]} d5 {[%emt 0:
00:00]} 3. Nc3 {[%emt 0:00:03]} dxe4 {[%emt 0:00:02]} 4. Nxe4 {[%emt 0:00:01]}
Nd7 {[%emt 0:00:00]} 5. Nf3 {[%emt 0:00:02]} Ngf6 {[%emt 0:00:01]} 6. Bg5 {
[%emt 0:00:06]} Be7 {[%emt 0:00:01]} 7. Bxf6 {[%emt 0:00:10]} Nxf6 {[%emt 0:00:
01]} 8. Nxf6+ {[%emt 0:00:08]} Bxf6 {[%emt 0:00:11]} 9. Bd3 {[%emt 0:00:15]}
O-O {[%emt 0:00:02]} 10. c3 {[%emt 0:00:01]} b6 {[%emt 0:00:27]} 11. Be4 {
[%emt 0:00:26]} Rb8 {[%emt 0:00:01]} 12. Qc2 {[%emt 0:00:15]} g6 {[%emt 0:00:
05]} 13. O-O {[%emt 0:00:10]} Qd6 {[%emt 0:00:23]} 14. Rad1 {[%emt 0:00:19]}
Bg7 {[%emt 0:00:25]} 15. Rfe1 {[%emt 0:00:11]} Re8 {[%emt 0:00:23]} 16. Qe2 {
[%emt 0:00:28]} c6 {[%emt 0:01:15]} 17. Bc2 {[%emt 0:01:11]} Bb7 {[%emt 0:00:
16]} 18. Rd2 {[%emt 0:01:07]} Rbd8 {[%emt 0:00:59]} 19. Qe3 {[%emt 0:00:30]}
Bf8 {[%emt 0:01:20]} 20. Ne5 {[%emt 0:01:04]} c5 {[%emt 0:02:06]} 21. Qf4 {
[%emt 0:02:06]} Re7 {[%emt 0:01:49]} 22. Red1 {[%emt 0:00:53]} c4 {[%emt 0:00:
30]} 23. Qe3 {[%emt 0:00:52]} Qd5 {[%emt 0:00:36]} 24. f3 {[%emt 0:00:08]} b5 {
[%emt 0:01:23]} 25. Be4 {[%emt 0:00:15]} Qd6 {[%emt 0:00:01]} 26. Bxb7 {[%emt
0:00:21]} Rxb7 {[%emt 0:00:05]} 27. d5 {[%emt 0:01:12]} Re8 {[%emt 0:00:58]}
28. Qe4 {[%emt 0:01:08]} Bg7 {[%emt 0:01:06]} 29. dxe6 {[%emt 0:01:02]} Qxe5 {
[%emt 0:01:16]} 30. Qxb7 {[%emt 0:00:06]} Bh6 {[%emt 0:01:52]} 31. Qxf7+ {
[%emt 0:00:13]} 1-0

[Event "16th EWICC 2015"]
[Site "Kutaisi"]
[Date "2015.06.02"]
[Round "6"]
[White "Galliamova, Alisa"]
[Black "Khomeriki, Nino"]
[Result "1-0"]
[ECO "A45"]
[WhiteElo "2478"]
[BlackElo "2228"]
[Annotator "Robot 11"]
[PlyCount "69"]
[EventDate "2015.??.??"]
[EventCountry "GEO"]
[TimeControl "900+10"]

1. d4 {[%emt 0:00:02]} Nf6 {[%emt 0:00:01]} 2. g3 {[%emt 0:00:01]} c5 {[%emt 0:
00:28]} 3. d5 {[%emt 0:00:14]} g6 {[%emt 0:00:08]} 4. Bg2 {[%emt 0:00:15]} Bg7
{[%emt 0:00:09]} 5. e4 {[%emt 0:00:29]} d6 {[%emt 0:00:18]} 6. a4 {[%emt 0:00:
06]} O-O {[%emt 0:00:38]} 7. Ne2 {[%emt 0:00:02]} e6 {[%emt 0:00:23]} 8. dxe6 {
[%emt 0:00:41]} fxe6 {[%emt 0:01:30]} 9. O-O {[%emt 0:00:14]} Nc6 {[%emt 0:00:
07]} 10. Bf4 {[%emt 0:00:19]} d5 {[%emt 0:00:37]} 11. exd5 {[%emt 0:00:16]}
exd5 {[%emt 0:00:22]} 12. Nbc3 {[%emt 0:00:07]} d4 {[%emt 0:00:30]} 13. Nb5 {
[%emt 0:00:03]} Ne8 {[%emt 0:02:31]} 14. Qd2 {[%emt 0:02:30]} a6 {[%emt 0:00:
35]} 15. Na3 {[%emt 0:00:03]} Be6 {[%emt 0:00:01]} 16. Bh6 {[%emt 0:00:13]}
Bxh6 {[%emt 0:01:20]} 17. Qxh6 {[%emt 0:00:03]} Nd6 {[%emt 0:00:19]} 18. Qd2 {
[%emt 0:00:22]} Ne5 {[%emt 0:01:31]} 19. Nf4 {[%emt 0:00:14]} Qg5 {[%emt 0:01:
10]} 20. h4 {[%emt 0:00:43]} Qh6 {[%emt 0:00:09]} 21. Qe2 {[%emt 0:01:09]} g5 {
[%emt 0:03:48]} 22. hxg5 {[%emt 0:00:21]} Qxg5 {[%emt 0:00:59]} 23. Nxe6 {
[%emt 0:00:04]} Qf6 {[%emt 0:00:20]} 24. Nxc5 {[%emt 0:02:09]} Rae8 {[%emt 0:
00:15]} 25. Ne4 {[%emt 0:00:36]} Qh6 {[%emt 0:00:45]} 26. Qd2 {[%emt 0:00:36]}
Qe6 {[%emt 0:00:13]} 27. Nxd6 {[%emt 0:00:25]} Qxd6 {[%emt 0:00:01]} 28. Rae1 {
[%emt 0:00:30]} Qf6 {[%emt 0:00:18]} 29. Re4 {[%emt 0:00:44]} Kh8 {[%emt 0:00:
12]} 30. Qxd4 {[%emt 0:00:27]} Rf7 {[%emt 0:00:09]} 31. Nc4 {[%emt 0:00:34]}
Rd7 {[%emt 0:00:10]} 32. Qc3 {[%emt 0:00:17]} Rc8 {[%emt 0:00:12]} 33. Rxe5 {
[%emt 0:00:35]} Kg7 {[%emt 0:00:06]} 34. Rg5+ {[%emt 0:00:40]} Kf7 {[%emt 0:00:
02]} 35. Bd5+ {[%emt 0:00:03]} 1-0

[Event "16th EWICC 2015"]
[Site "Kutaisi"]
[Date "2015.06.02"]
[Round "6"]
[White "Gevorgyan, Maria"]
[Black "Batsiashvili, Nino"]
[Result "0-1"]
[ECO "C50"]
[WhiteElo "2190"]
[BlackElo "2473"]
[Annotator "Robot 11"]
[PlyCount "96"]
[EventDate "2015.??.??"]
[EventCountry "GEO"]
[TimeControl "900+10"]

1. e4 {[%emt 0:00:02]} e5 {[%emt 0:00:06]} 2. Nf3 {[%emt 0:00:02]} Nc6 {[%emt
0:00:01]} 3. Bc4 {[%emt 0:00:01]} Nf6 {[%emt 0:00:05]} 4. d3 {[%emt 0:00:03]}
Bc5 {[%emt 0:00:05]} 5. c3 {[%emt 0:00:05]} d6 {[%emt 0:00:19]} 6. O-O {[%emt
0:00:04]} O-O {[%emt 0:00:04]} 7. h3 {[%emt 0:00:04]} a6 {[%emt 0:00:05]} 8.
Bb3 {[%emt 0:00:02]} Ba7 {[%emt 0:00:09]} 9. Nbd2 {[%emt 0:00:05]} Be6 {[%emt
0:00:17]} 10. Re1 {[%emt 0:00:11]} Ne7 {[%emt 0:00:04]} 11. Nf1 {[%emt 0:00:05]
} Qd7 {[%emt 0:00:10]} 12. Ng3 {[%emt 0:00:46]} Ng6 {[%emt 0:00:18]} 13. d4 {
[%emt 0:00:17]} Rfe8 {[%emt 0:00:46]} 14. d5 {[%emt 0:01:39]} Bxh3 {[%emt 0:00:
02]} 15. gxh3 {[%emt 0:00:02]} Qxh3 {[%emt 0:00:01]} 16. Re3 {[%emt 0:07:15]}
Bxe3 {[%emt 0:01:31]} 17. Bxe3 {[%emt 0:00:02]} Nf4 {[%emt 0:00:01]} 18. Qf1 {
[%emt 0:00:31]} Qg4 {[%emt 0:00:10]} 19. Nh2 {[%emt 0:00:11]} Qg6 {[%emt 0:00:
33]} 20. Bc2 {[%emt 0:01:29]} N6xd5 {[%emt 0:00:11]} 21. exd5 {[%emt 0:00:31]}
Qxc2 {[%emt 0:00:01]} 22. c4 {[%emt 0:02:29]} Qxb2 {[%emt 0:00:30]} 23. Qd1 {
[%emt 0:01:14]} b5 {[%emt 0:00:27]} 24. cxb5 {[%emt 0:00:42]} axb5 {[%emt 0:00:
34]} 25. Rc1 {[%emt 0:00:55]} Qxa2 {[%emt 0:00:47]} 26. Qg4 {[%emt 0:00:10]}
Qxd5 {[%emt 0:01:46]} 27. Bxf4 {[%emt 0:00:01]} exf4 {[%emt 0:00:01]} 28. Nh5 {
[%emt 0:00:01]} Qe5 {[%emt 0:00:34]} 29. Nf3 {[%emt 0:00:02]} Qb2 {[%emt 0:00:
32]} 30. Rc2 {[%emt 0:00:41]} Qa1+ {[%emt 0:00:24]} 31. Kg2 {[%emt 0:00:01]} c5
{[%emt 0:01:32]} 32. Rc1 {[%emt 0:00:02]} Qb2 {[%emt 0:01:16]} 33. Rc2 {[%emt
0:00:04]} Qa1 {[%emt 0:00:23]} 34. Rc1 {[%emt 0:00:01]} f5 {[%emt 0:00:45]} 35.
Qg5 {[%emt 0:00:01]} Qa7 {[%emt 0:00:01]} 36. Nf6+ {[%emt 0:00:02]} Kh8 {[%emt
0:00:01]} 37. Nxe8 {[%emt 0:00:45]} Rxe8 {[%emt 0:00:01]} 38. Qxf5 {[%emt 0:00:
06]} Qa8 {[%emt 0:00:20]} 39. Rh1 {[%emt 0:00:19]} h6 {[%emt 0:00:17]} 40. Qg6
{[%emt 0:00:17]} Qe4 {[%emt 0:00:34]} 41. Qxd6 {[%emt 0:00:09]} Re6 {[%emt 0:
00:05]} 42. Qf8+ {[%emt 0:00:02]} Kh7 {[%emt 0:00:02]} 43. Rh3 {[%emt 0:00:22]}
Rg6+ {[%emt 0:00:53]} 44. Kh2 {[%emt 0:00:08]} Qc2 {[%emt 0:01:30]} 45. Ng5+ {
[%emt 0:00:12]} Rxg5 {[%emt 0:00:07]} 46. Qxf4 {[%emt 0:00:01]} Qf5 {[%emt 0:
00:12]} 47. Qe3 {[%emt 0:00:17]} Qe5+ {[%emt 0:00:08]} 48. f4 {[%emt 0:00:10]}
Qb2+ {[%emt 0:00:08]} 0-1

[Event "16th EWICC 2015"]
[Site "Kutaisi"]
[Date "2015.06.02"]
[Round "6"]
[White "Gvetadze, Sofio"]
[Black "Lomineishvili, Maia"]
[Result "1-0"]
[ECO "B01"]
[WhiteElo "2319"]
[BlackElo "2364"]
[Annotator "Robot 11"]
[PlyCount "102"]
[EventDate "2015.??.??"]
[EventCountry "GEO"]
[TimeControl "900+10"]

1. e4 {[%emt 0:00:02]} d5 {[%emt 0:00:03]} 2. exd5 {[%emt 0:00:03]} Qxd5 {
[%emt 0:00:02]} 3. Nc3 Qd6 4. d4 {[%emt 0:00:05]} c6 {[%emt 0:00:02]} 5. Nf3 {
[%emt 0:00:04]} Nf6 {[%emt 0:00:02]} 6. g3 {[%emt 0:00:04]} Bg4 {[%emt 0:00:03]
} 7. Bg2 {[%emt 0:00:10]} Qe6+ {[%emt 0:00:56]} 8. Be3 {[%emt 0:00:41]} Nd5 {
[%emt 0:00:09]} 9. Nxd5 {[%emt 0:00:08]} cxd5 {[%emt 0:00:01]} 10. h3 {[%emt 0:
00:09]} Bxf3 {[%emt 0:00:51]} 11. Qxf3 {[%emt 0:00:09]} Nc6 {[%emt 0:00:09]}
12. Qxd5 {[%emt 0:00:44]} Qxd5 {[%emt 0:00:13]} 13. Bxd5 {[%emt 0:00:02]} O-O-O
{[%emt 0:00:40]} 14. Bxf7 {[%emt 0:02:59]} Nxd4 {[%emt 0:00:05]} 15. O-O-O {
[%emt 0:02:08]} e5 {[%emt 0:00:03]} 16. c3 {[%emt 0:01:33]} Nc6 {[%emt 0:00:05]
} 17. Bd5 {[%emt 0:01:16]} Be7 {[%emt 0:01:54]} 18. Be4 {[%emt 0:00:42]} Kc7 {
[%emt 0:01:09]} 19. h4 {[%emt 0:00:24]} b6 {[%emt 0:00:27]} 20. Rxd8 {[%emt 0:
00:11]} Bxd8 {[%emt 0:00:19]} 21. Rd1 {[%emt 0:00:12]} g6 {[%emt 0:01:06]} 22.
Rh1 {[%emt 0:02:58]} Bf6 {[%emt 0:04:03]} 23. h5 {[%emt 0:00:01]} Ne7 {[%emt 0:
01:06]} 24. g4 {[%emt 0:00:16]} g5 {[%emt 0:00:22]} 25. h6 {[%emt 0:00:44]} Ng6
{[%emt 0:00:10]} 26. Rd1 {[%emt 0:00:48]} Nh4 {[%emt 0:00:36]} 27. c4 {[%emt 0:
00:40]} Be7 {[%emt 0:01:03]} 28. Rd5 {[%emt 0:00:07]} Ng6 {[%emt 0:00:20]} 29.
Bxg6 {[%emt 0:00:15]} hxg6 {[%emt 0:00:01]} 30. Rxe5 {[%emt 0:00:02]} Bd6 {
[%emt 0:00:25]} 31. Rxg5 {[%emt 0:00:05]} Rxh6 {[%emt 0:00:01]} 32. Kc2 {[%emt
0:00:01]} Kd7 {[%emt 0:00:28]} 33. b4 {[%emt 0:00:11]} Rh2 {[%emt 0:00:15]} 34.
Kb3 {[%emt 0:00:27]} Rh1 {[%emt 0:00:10]} 35. c5 {[%emt 0:00:07]} bxc5 {[%emt
0:00:01]} 36. bxc5 {[%emt 0:00:01]} Be7 {[%emt 0:00:15]} 37. Rxg6 {[%emt 0:00:
01]} Rb1+ {[%emt 0:00:12]} 38. Kc2 {[%emt 0:00:03]} Rb5 {[%emt 0:00:07]} 39.
Ra6 {[%emt 0:01:05]} Bxc5 {[%emt 0:00:22]} 40. a4 {[%emt 0:00:01]} Rb4 {[%emt
0:00:13]} 41. Bxc5 {[%emt 0:00:01]} Rc4+ {[%emt 0:00:01]} 42. Kd3 Rxc5 43.
Rxa7+ {[%emt 0:00:05]} Ke6 {[%emt 0:00:04]} 44. f4 {[%emt 0:00:05]} Rc1 {[%emt
0:00:01]} 45. Ra6+ {[%emt 0:00:04]} Kd5 {[%emt 0:00:01]} 46. Ra5+ {[%emt 0:00:
08]} Kc6 {[%emt 0:00:01]} 47. Re5 {[%emt 0:00:14]} Ra1 {[%emt 0:00:05]} 48. a5
{[%emt 0:00:03]} Ra4 {[%emt 0:00:01]} 49. Ke3 {[%emt 0:00:09]} Kd6 {[%emt 0:00:
01]} 50. g5 {[%emt 0:00:05]} Ra1 {[%emt 0:00:06]} 51. Ke4 {[%emt 0:00:05]} Rg1
{[%emt 0:00:08]} 1-0